[Event "Vienna Chess Open 2019"]
[Site "Vienna"]
[Date "2019.08.21"]
[Round "6.9"]
[White "Hertneck, Gerald"]
[Black "Zamengo, Fulvio"]
[Result "1-0"]
[ECO "D78"]
[WhiteElo "2495"]
[BlackElo "2342"]
[Annotator "ChessBase"]
[PlyCount "87"]
[EventDate "2019.08.17"]
[EventType "swiss"]
[EventCountry "AUT"]
[SourceTitle "playchess.com"]
[Source "ChessBase"]
[SourceQuality "1"]
[TimeControl "40/5400+30:1800+30"]

1. d4 {[%emt 0:00:00]} Nf6 {[%emt 0:00:00]} 2. c4 {[%emt 0:00:00]} g6 {[%emt 0:00:27]} 3. g3 {[%emt 0:00:06]} c6 {[%emt 0:01:01]} 4. Bg2 {[%emt 0:00:23]} d5 {[%emt 0:00:08]} 5. Nf3 {[%emt 0:00:18]} Bg7 {[%emt 0:00:09]} 6. O-O {[%emt 0:00:06]} O-O {[%emt 0:00:30]} 7. b3 {[%emt 0:00:42]} dxc4 {[%emt 0:01:17]} 8. bxc4 {[%emt 0:00:07]} c5 {[%emt 0:00:06]} 9. e3 {[%emt 0:02:53]} Nc6 {[%emt 0:06:35]} 10. Bb2 {[%emt 0:00:20]} Qb6 {[%emt 0:03:11]} 11. Qe2 {[%emt 0:05:01]} Bg4 {[%emt 0:11:05]} 12. d5 {[%emt 0:02:11]} Na5 {[%emt 0:00:08]} 13. Na3 {[%emt 0:01:32]} Ne4 {[%emt 0:09:14]} 14. Bxg7 {[%emt 0:00:58]} Kxg7 {[%emt 0:00:06]} 15. Qc2 {[%emt 0:00:11]} Bxf3 {[%emt 0:00:41]} 16. Bxf3 {[%emt 0:00:07]} Nd6 {[%emt 0:00:17]} 17. Rab1 {[%emt 0:00:21]} Qd8 {[%emt 0:03:14]} 18. Qc3+ {[%emt 0:00:15]} f6 {[%emt 0:08:29]} 19. e4 {[%emt 0:00:32]} b6 {[%emt 0:04:11]} 20. Bg2 {[%emt 0:00:21]} Qd7 {[%emt 0:04:39]} 21. f4 {[%emt 0:17:49]} Rae8 {[%emt 0:07:38]} 22. e5 {[%emt 0:03:16]} Nf5 {[%emt 0:00:08]} 23. Nb5 {[%emt 0:00:36]} a6 {[%emt 0:04:56]} 24. Na3 {[%emt 0:03:36]} Nd4 {[%emt 0:00:07]} 25. Rfe1 {[%emt 0:00:17]} Rb8 {[%emt 0:00:28]} 26. Nc2 {[%emt 0:02:22]} Nxc2 {[%emt 0:14:08]} 27. Qxc2 {[%emt 0:00:07]} f5 {[%emt 0:00:38]} 28. Rb2 {[%emt 0:04:27]} b5 {[%emt 0:05:24]} 29. cxb5 {[%emt 0:12:29]} axb5 {[%emt 0:00:51]} 30. Qxc5 {[%emt 0:01:07]} Rfc8 {[%emt 0:02:14]} 31. Qd4 {[%emt 0:00:55]} e6 {[%emt 0:01:30]} 32. Rd2 {[%emt 0:01:04]} Rc4 {[%emt 0:01:01]} 33. Qf2 {[%emt 0:00:20]} exd5 {[%emt 0:02:47]} 34. e6 {[%emt 0:00:53]} Qe7 {[%emt 0:00:19]} 35. Rxd5 {[%emt 0:00:35]} Rb7 {[%emt 0:00:48]} 36. Qb2+ {[%emt 0:04:23]} Kh6 {[%emt 0:00:11]} 37. Rxb5 {[%emt 0:00:13]} Ra7 {[%emt 0:03:41]} 38. h3 {[%emt 0:02:18]} Nc6 {[%emt 0:00:14]} 39. g4 {[%emt 0:02:34]} Nd4 {[%emt 0:00:59]} 40. g5+ {[%emt 0:00:08]} Kh5 {[%emt 0:00:06]} 41. Qf2 {[%emt 0:31:33]} h6 {[%emt 0:31:21]} 42. Bf3+ {[%emt 0:01:49]} Nxf3+ {[%emt 0:00:06]} 43. Qxf3+ {[%emt 0:00:05]} Kh4 {[%emt 0:00:08]} 44. Qf2+ {[%emt 0:00:04]} 1-0

[Event "Vienna Chess Open 2019"]
[Site "Vienna"]
[Date "2019.08.21"]
[Round "6.9"]
[White "Peyrer, Konstantin"]
[Black "Tuncer, Tuna"]
[Result "1/2-1/2"]
[ECO "D02"]
[WhiteElo "2260"]
[BlackElo "2362"]
[Annotator "NA"]
[PlyCount "97"]
[EventDate "2019.08.17"]
[EventType "swiss"]
[EventCountry "AUT"]
[SourceTitle "playchess.com"]
[Source "ChessBase"]
[SourceQuality "1"]
[TimeControl "40/5400+30:1800+30"]

1. d4 {[%emt 0:00:00]} d5 {[%emt 0:00:00]} 2. Nf3 {[%emt 0:00:00]} Nf6 {[%emt 0:00:24]} 3. g3 {[%emt 0:00:03]} g6 {[%emt 0:00:24]} 4. Bg2 {[%emt 0:00:11]} Bg7 {[%emt 0:00:06]} 5. O-O {[%emt 0:00:29]} O-O {[%emt 0:00:15]} 6. Bf4 {[%emt 0:00:56]} a5 7. Nbd2 c6 {[%emt 0:03:41]} 8. c4 {[%emt 0:02:59]} a4 {[%emt 0:09:02]} 9. Bxb8 {[%emt 0:02:32]} Rxb8 {[%emt 0:01:03]} 10. Qxa4 {[%emt 0:00:08]} Ne4 {[%emt 0:06:55]} 11. cxd5 {[%emt 0:04:48]} cxd5 {[%emt 0:03:07]} 12. e3 {[%emt 0:03:31]} Bf5 {[%emt 0:13:38]} 13. Nxe4 {[%emt 0:05:02]} Bxe4 {[%emt 0:09:38]} 14. Nd2 {[%emt 0:00:20]} Bxg2 {[%emt 0:09:53]} 15. Kxg2 {[%emt 0:00:13]} e5 {[%emt 0:00:05]} 16. dxe5 {[%emt 0:00:07]} Bxe5 {[%emt 0:00:03]} 17. Nf3 Bxb2 {[%emt 0:03:19]} 18. Rad1 {[%emt 0:00:12]} Qe7 {[%emt 0:10:54]} 19. Rxd5 {[%emt 0:03:53]} Ra8 {[%emt 0:00:24]} 20. Qb3 {[%emt 0:03:07]} Qe4 {[%emt 0:01:03]} 21. Rd7 {[%emt 0:01:43]} Bf6 {[%emt 0:01:11]} 22. Rc1 {[%emt 0:00:25]} Qa4 {[%emt 0:02:25]} 23. Qxa4 {[%emt 0:04:35]} Rxa4 {[%emt 0:00:03]} 24. Rc2 {[%emt 0:00:21]} b5 {[%emt 0:00:43]} 25. Rb7 {[%emt 0:00:26]} b4 {[%emt 0:02:17]} 26. Nd2 {[%emt 0:00:41]} Bc3 {[%emt 0:04:55]} 27. Ne4 {[%emt 0:03:36]} Rfa8 {[%emt 0:02:26]} 28. Nxc3 {[%emt 0:00:25]} bxc3 {[%emt 0:00:02]} 29. Rxc3 {[%emt 0:00:08]} Rxa2 {[%emt 0:00:05]} 30. Rcc7 {[%emt 0:00:12]} Rf8 {[%emt 0:00:08]} 31. e4 {[%emt 0:00:14]} Ra5 {[%emt 0:08:25]} 32. Re7 {[%emt 0:00:09]} Raa8 {[%emt 0:00:15]} 33. e5 {[%emt 0:02:20]} Rae8 {[%emt 0:00:15]} 34. h4 {[%emt 0:01:00]} h5 {[%emt 0:01:11]} 35. g4 {[%emt 0:03:27]} hxg4 {[%emt 0:01:32]} 36. Kg3 {[%emt 0:00:05]} Rxe7 {[%emt 0:00:45]} 37. Rxe7 {[%emt 0:00:14]} Ra8 {[%emt 0:04:00]} 38. Kxg4 {[%emt 0:01:23]} Kf8 {[%emt 0:00:30]} 39. Rb7 {[%emt 0:00:13]} Ra2 {[%emt 0:00:05]} 40. f3 {[%emt 0:02:00]} Rg2+ {[%emt 0:00:09]} 41. Kf4 {[%emt 0:30:08]} Re2 {[%emt 0:33:40]} 42. h5 {[%emt 0:03:20]} gxh5 {[%emt 0:01:27]} 43. Kf5 {[%emt 0:00:26]} Rg2 {[%emt 0:00:00]} 44. Rb1 {[%emt 0:00:00]} Rg3 {[%emt 0:00:00]} 45. Kf4 {[%emt 0:00:00]} Rg6 {[%emt 0:00:00]} 46. Rh1 {[%emt 0:00:00]} Rh6 {[%emt 0:00:00]} 47. Kg5 {[%emt 0:00:00]} Rg6+ {[%emt 0:00:00]} 48. Kf5 {[%emt 0:00:00]} Rh6 {[%emt 0:00:00]} 49. Ke4 1/2-1/2

[Event "Vienna Chess Open 2019"]
[Site "Vienna"]
[Date "2019.08.21"]
[Round "6.10"]
[White "Diermair, Andreas"]
[Black "Mostbauer, Florian"]
[Result "1-0"]
[ECO "D78"]
[WhiteElo "2473"]
[BlackElo "2338"]
[Annotator "ChessBase"]
[PlyCount "81"]
[EventDate "2019.08.17"]
[EventType "swiss"]
[EventCountry "AUT"]
[SourceTitle "playchess.com"]
[Source "ChessBase"]
[SourceQuality "1"]
[TimeControl "40/5400+30:1800+30"]

1. d4 {[%emt 0:00:45]} d5 {[%emt 0:00:00]} 2. c4 {[%emt 0:00:04]} c6 {[%emt 0:00:00]} 3. Nf3 {[%emt 0:00:02]} Nf6 {[%emt 0:00:00]} 4. g3 {[%emt 0:00:08]} g6 {[%emt 0:00:58]} 5. Bg2 {[%emt 0:00:07]} Bg7 {[%emt 0:00:07]} 6. O-O {[%emt 0:00:09]} O-O {[%emt 0:00:07]} 7. Qb3 {[%emt 0:00:07]} Qb6 {[%emt 0:06:59]} 8. Nc3 {[%emt 0:00:13]} dxc4 {[%emt 0:12:02]} 9. Qxc4 {[%emt 0:00:59]} Qa6 {[%emt 0:02:44]} 10. b3 {[%emt 0:10:04]} Be6 {[%emt 0:04:08]} 11. Qxa6 {[%emt 0:05:31]} Nxa6 {[%emt 0:00:19]} 12. Ng5 {[%emt 0:05:36]} Bd7 {[%emt 0:10:35]} 13. e4 {[%emt 0:08:46]} Rfd8 {[%emt 0:05:18]} 14. Ba3 {[%emt 0:01:49]} Bf8 {[%emt 0:00:51]} 15. h3 {[%emt 0:06:19]} h6 {[%emt 0:05:18]} 16. Nf3 {[%emt 0:00:06]} e6 {[%emt 0:01:11]} 17. Bxf8 {[%emt 0:02:05]} Kxf8 {[%emt 0:00:16]} 18. e5 {[%emt 0:04:31]} Nd5 {[%emt 0:06:20]} 19. Ne4 {[%emt 0:00:08]} Rdc8 {[%emt 0:05:56]} 20. Rfc1 {[%emt 0:00:42]} Ke7 {[%emt 0:02:05]} 21. a3 {[%emt 0:03:53]} Nac7 {[%emt 0:01:26]} 22. Nfd2 {[%emt 0:03:40]} Nb5 {[%emt 0:01:57]} 23. Nf3 {[%emt 0:02:52]} f5 {[%emt 0:02:01]} 24. exf6+ {[%emt 0:08:05]} Nxf6 {[%emt 0:00:11]} 25. Nc5 {[%emt 0:00:38]} Rab8 {[%emt 0:00:47]} 26. a4 {[%emt 0:01:07]} Nc7 {[%emt 0:00:33]} 27. Ra2 {[%emt 0:02:00]} Be8 {[%emt 0:02:53]} 28. Re2 {[%emt 0:01:31]} Rd8 {[%emt 0:02:39]} 29. h4 {[%emt 0:04:39]} b6 {[%emt 0:03:55]} 30. Nd3 {[%emt 0:08:25]} g5 {[%emt 0:04:29]} 31. hxg5 {[%emt 0:00:48]} hxg5 {[%emt 0:00:06]} 32. Nxg5 {[%emt 0:00:56]} Rxd4 {[%emt 0:00:37]} 33. Nf4 {[%emt 0:01:35]} Rd6 {[%emt 0:01:57]} 34. Bh3 {[%emt 0:02:11]} Bh5 {[%emt 0:02:50]} 35. Re3 {[%emt 0:03:02]} Bg4 {[%emt 0:04:45]} 36. Ng6+ {[%emt 0:02:21]} Ke8 {[%emt 0:00:07]} 37. Bxg4 {[%emt 0:00:52]} Nxg4 {[%emt 0:00:08]} 38. Rf3 {[%emt 0:00:13]} Rc8 {[%emt 0:03:47]} 39. Ne4 {[%emt 0:04:30]} Rd4 {[%emt 0:01:33]} 40. Rf4 {[%emt 0:00:30]} Rd7 {[%emt 0:02:38]} 41. Rf8# {[%emt 0:30:10]} 1-0

[Event "Vienna Chess Open 2019"]
[Site "Vienna"]
[Date "2019.08.21"]
[Round "6.10"]
[White "Halvax, Georg"]
[Black "Gumularz, Szymon"]
[Result "1/2-1/2"]
[ECO "E10"]
[WhiteElo "2403"]
[BlackElo "2501"]
[Annotator "ChessBase"]
[PlyCount "62"]
[EventDate "2019.08.17"]
[EventType "swiss"]
[EventCountry "AUT"]
[SourceTitle "playchess.com"]
[Source "ChessBase"]
[SourceQuality "1"]
[TimeControl "40/5400+30:1800+30"]

1. d4 {[%emt 0:00:00]} Nf6 {[%emt 0:00:00]} 2. c4 {[%emt 0:00:00]} e6 {[%emt 0:00:00]} 3. Nf3 {[%emt 0:00:05]} d5 {[%emt 0:00:00]} 4. e3 {[%emt 0:00:44]} Be7 {[%emt 0:03:49]} 5. Nbd2 {[%emt 0:01:38]} b6 {[%emt 0:01:28]} 6. Be2 {[%emt 0:01:48]} Bb7 {[%emt 0:01:13]} 7. O-O {[%emt 0:00:29]} O-O {[%emt 0:00:03]} 8. b3 {[%emt 0:01:11]} a5 {[%emt 0:11:59]} 9. a3 {[%emt 0:05:17]} Nbd7 {[%emt 0:01:40]} 10. Bb2 {[%emt 0:01:11]} Bd6 {[%emt 0:00:04]} 11. Qc2 {[%emt 0:20:41]} Qe7 {[%emt 0:08:04]} 12. Bd3 {[%emt 0:03:00]} c5 {[%emt 0:30:54]} 13. e4 {[%emt 0:07:54]} dxe4 {[%emt 0:03:43]} 14. Nxe4 {[%emt 0:00:24]} Nxe4 {[%emt 0:00:18]} 15. Bxe4 {[%emt 0:00:08]} Bxe4 {[%emt 0:00:03]} 16. Qxe4 {[%emt 0:00:25]} a4 {[%emt 0:00:06]} 17. Rfe1 {[%emt 0:08:42]} axb3 {[%emt 0:05:47]} 18. d5 {[%emt 0:01:01]} e5 {[%emt 0:00:47]} 19. Qe3 {[%emt 0:05:31]} f5 {[%emt 0:01:11]} 20. Nd2 {[%emt 0:03:53]} Qh4 {[%emt 0:02:42]} 21. Qxb3 {[%emt 0:11:57]} e4 {[%emt 0:02:14]} 22. Nf1 {[%emt 0:01:04]} Ne5 {[%emt 0:03:51]} 23. Bxe5 {[%emt 0:02:22]} Bxe5 {[%emt 0:01:03]} 24. Ra2 {[%emt 0:01:07]} Rf6 {[%emt 0:00:18]} 25. a4 {[%emt 0:07:54]} Bd4 {[%emt 0:03:31]} 26. Qg3 {[%emt 0:03:32]} Qh5 {[%emt 0:01:18]} 27. Qc7 {[%emt 0:01:28]} Raf8 {[%emt 0:08:11]} 28. d6 {[%emt 0:06:07]} Be5 {[%emt 0:03:33]} 29. Rd2 {[%emt 0:02:07]} Rg6 {[%emt 0:02:16]} 30. Qe7 {[%emt 0:00:45]} Bf6 {[%emt 0:03:05]} 31. Qe6+ {[%emt 0:01:02]} Kh8 {[%emt 0:00:05]} 1/2-1/2

[Event "Vienna Chess Open 2019"]
[Site "Vienna"]
[Date "2019.08.21"]
[Round "6.10"]
[White "Randazzo, Adrian"]
[Black "Chylewski, Patryk"]
[Result "0-1"]
[ECO "A30"]
[WhiteElo "2254"]
[BlackElo "2356"]
[Annotator "NA"]
[PlyCount "76"]
[EventDate "2019.08.17"]
[EventType "swiss"]
[EventCountry "AUT"]
[SourceTitle "playchess.com"]
[Source "ChessBase"]
[SourceQuality "1"]
[TimeControl "40/5400+30:1800+30"]

1. Nf3 {[%emt 0:00:00]} Nf6 {[%emt 0:00:00]} 2. c4 {[%emt 0:00:39]} e6 {[%emt 0:00:01]} 3. g3 {[%emt 0:00:54]} b6 {[%emt 0:00:26]} 4. Bg2 {[%emt 0:00:18]} Bb7 {[%emt 0:00:05]} 5. O-O {[%emt 0:00:18]} c5 {[%emt 0:00:05]} 6. Nc3 {[%emt 0:00:17]} Be7 {[%emt 0:00:12]} 7. Re1 {[%emt 0:00:40]} Ne4 {[%emt 0:05:34]} 8. Nxe4 {[%emt 0:00:42]} Bxe4 {[%emt 0:00:05]} 9. d3 {[%emt 0:00:05]} Bb7 {[%emt 0:00:06]} 10. e4 {[%emt 0:00:07]} Nc6 {[%emt 0:00:10]} 11. d4 {[%emt 0:00:16]} cxd4 {[%emt 0:00:04]} 12. Nxd4 {[%emt 0:00:06]} Nxd4 {[%emt 0:00:46]} 13. Qxd4 {[%emt 0:00:08]} O-O {[%emt 0:00:05]} 14. Bf4 {[%emt 0:01:20]} Bc5 {[%emt 0:00:22]} 15. Qd2 {[%emt 0:01:37]} Qe7 {[%emt 0:00:40]} 16. a3 {[%emt 0:08:59]} a5 {[%emt 0:06:46]} 17. Red1 {[%emt 0:09:49]} e5 {[%emt 0:00:40]} 18. Be3 {[%emt 0:00:42]} Bc6 {[%emt 0:00:13]} 19. a4 {[%emt 0:19:30]} Rfd8 {[%emt 0:04:08]} 20. b3 {[%emt 0:01:09]} Bb4 {[%emt 0:04:42]} 21. Qe2 {[%emt 0:01:14]} Rab8 {[%emt 0:01:13]} 22. h4 {[%emt 0:03:00]} d6 {[%emt 0:03:39]} 23. Kh2 {[%emt 0:06:18]} Rf8 {[%emt 0:12:24]} 24. Qg4 {[%emt 0:06:36]} Qb7 {[%emt 0:03:01]} 25. Bh1 {[%emt 0:03:48]} Kh8 {[%emt 0:05:27]} 26. Ra2 {[%emt 0:04:33]} Rbd8 {[%emt 0:05:26]} 27. h5 {[%emt 0:03:10]} f6 {[%emt 0:03:39]} 28. Qh4 {[%emt 0:09:22]} Rd7 {[%emt 0:08:06]} 29. Qg4 {[%emt 0:07:17]} Rdf7 {[%emt 0:04:23]} 30. Qf5 {[%emt 0:01:27]} Rg8 {[%emt 0:06:26]} 31. Qg4 {[%emt 0:05:14]} g6 {[%emt 0:05:53]} 32. h6 {[%emt 0:00:25]} f5 {[%emt 0:02:12]} 33. exf5 {[%emt 0:01:10]} Bxh1 {[%emt 0:01:14]} 34. Rxh1 {[%emt 0:01:27]} gxf5 {[%emt 0:03:20]} 35. Qh5 {[%emt 0:03:11]} f4 {[%emt 0:00:35]} 36. Bxb6 {[%emt 0:00:26]} Rgf8 {[%emt 0:04:14]} 37. c5 {[%emt 0:00:29]} fxg3+ {[%emt 0:00:16]} 38. Kxg3 {[%emt 0:00:34]} Rg8+ {[%emt 0:00:17]} 0-1

[Event "Vienna Chess Open 2019"]
[Site "Vienna"]
[Date "2019.08.21"]
[Round "6.11"]
[White "Valsecchi, Alessio"]
[Black "Kojima, Shinya"]
[Result "1/2-1/2"]
[ECO "A06"]
[WhiteElo "2494"]
[BlackElo "2390"]
[Annotator "ChessBase"]
[PlyCount "44"]
[EventDate "2019.08.17"]
[EventType "swiss"]
[EventCountry "AUT"]
[SourceTitle "playchess.com"]
[Source "ChessBase"]
[SourceQuality "1"]
[TimeControl "40/5400+30:1800+30"]

1. Nf3 {[%emt 0:00:00]} d5 {[%emt 0:00:00]} 2. g3 {[%emt 0:00:00]} g6 {[%emt 0:00:00]} 3. Bg2 {[%emt 0:01:50]} Bg7 {[%emt 0:00:00]} 4. O-O {[%emt 0:00:22]} e5 {[%emt 0:00:35]} 5. d3 {[%emt 0:01:20]} Ne7 {[%emt 0:01:20]} 6. Nbd2 {[%emt 0:01:25]} O-O {[%emt 0:00:48]} 7. e4 {[%emt 0:00:23]} Nbc6 {[%emt 0:00:37]} 8. c3 {[%emt 0:05:59]} a5 {[%emt 0:00:20]} 9. a4 {[%emt 0:02:48]} h6 {[%emt 0:00:51]} 10. Re1 {[%emt 0:03:05]} d4 {[%emt 0:04:15]} 11. cxd4 {[%emt 0:06:53]} Nxd4 {[%emt 0:09:07]} 12. Nxd4 {[%emt 0:01:41]} Qxd4 {[%emt 0:01:04]} 13. Nb3 {[%emt 0:05:11]} Qd6 {[%emt 0:01:28]} 14. Be3 {[%emt 0:08:47]} Rd8 {[%emt 0:02:19]} 15. Rc1 {[%emt 0:06:46]} Qxd3 {[%emt 0:07:00]} 16. Qxd3 {[%emt 0:00:19]} Rxd3 {[%emt 0:00:05]} 17. Nc5 {[%emt 0:00:12]} Rd8 {[%emt 0:02:50]} 18. Nxb7 {[%emt 0:00:45]} Bxb7 {[%emt 0:00:26]} 19. Rxc7 {[%emt 0:00:07]} Bc6 {[%emt 0:01:14]} 20. Rxe7 {[%emt 0:03:42]} Bxa4 {[%emt 0:01:30]} 21. Bf1 {[%emt 0:02:53]} Bb3 {[%emt 0:02:00]} 22. Rc1 {[%emt 0:06:27]} Rac8 {[%emt 0:01:35]} 1/2-1/2

[Event "Vienna Chess Open 2019"]
[Site "Vienna"]
[Date "2019.08.21"]
[Round "6.11"]
[White "Ruff, Maximilian"]
[Black "Herman, Diego"]
[Result "1-0"]
[ECO "B07"]
[WhiteElo "2353"]
[BlackElo "2185"]
[Annotator "NA"]
[PlyCount "65"]
[EventDate "2019.08.17"]
[EventType "swiss"]
[EventCountry "AUT"]
[SourceTitle "playchess.com"]
[Source "ChessBase"]
[SourceQuality "1"]
[TimeControl "40/5400+30:1800+30"]

1. d4 {[%emt 0:00:00]} d6 {[%emt 0:00:00]} 2. e4 {[%emt 0:00:56]} Nf6 {[%emt 0:00:31]} 3. Nc3 {[%emt 0:00:06]} e5 {[%emt 0:01:01]} 4. Nf3 {[%emt 0:00:31]} exd4 {[%emt 0:00:18]} 5. Nxd4 {[%emt 0:00:05]} Be7 {[%emt 0:00:11]} 6. Bf4 {[%emt 0:00:16]} O-O {[%emt 0:06:36]} 7. Qd2 {[%emt 0:00:25]} Nc6 {[%emt 0:09:17]} 8. O-O-O {[%emt 0:00:30]} Nxd4 {[%emt 0:04:07]} 9. Qxd4 {[%emt 0:00:06]} Be6 {[%emt 0:01:01]} 10. f3 {[%emt 0:00:32]} a6 {[%emt 0:07:53]} 11. g4 {[%emt 0:01:42]} Nd7 {[%emt 0:06:23]} 12. Qd2 {[%emt 0:08:36]} Ne5 {[%emt 0:06:11]} 13. Be2 {[%emt 0:00:39]} b5 {[%emt 0:04:05]} 14. h4 {[%emt 0:01:45]} c6 {[%emt 0:19:31]} 15. Kb1 {[%emt 0:07:10]} Qc7 {[%emt 0:05:08]} 16. h5 {[%emt 0:11:29]} a5 {[%emt 0:01:53]} 17. g5 {[%emt 0:04:39]} a4 {[%emt 0:03:34]} 18. a3 {[%emt 0:13:24]} Rfb8 {[%emt 0:08:33]} 19. Na2 {[%emt 0:15:20]} c5 {[%emt 0:01:12]} 20. g6 {[%emt 0:00:31]} fxg6 {[%emt 0:01:40]} 21. hxg6 {[%emt 0:00:57]} hxg6 {[%emt 0:00:36]} 22. Nc3 {[%emt 0:00:46]} Qa5 {[%emt 0:05:11]} 23. Nd5 {[%emt 0:19:55]} Qxd2 {[%emt 0:00:24]} 24. Rxd2 {[%emt 0:03:47]} Bd8 {[%emt 0:03:15]} 25. c3 {[%emt 0:03:26]} Kf7 {[%emt 0:01:24]} 26. Be3 {[%emt 0:02:10]} Ra7 {[%emt 0:01:40]} 27. Rg1 {[%emt 0:01:46]} Rab7 {[%emt 0:00:25]} 28. Bf4 {[%emt 0:01:45]} b4 {[%emt 0:01:19]} 29. cxb4 {[%emt 0:00:35]} Bxd5 {[%emt 0:00:06]} 30. Rxd5 {[%emt 0:00:08]} Be7 {[%emt 0:00:19]} 31. b5 {[%emt 0:00:37]} Kf6 {[%emt 0:00:51]} 32. Bg5+ {[%emt 0:00:38]} Ke6 {[%emt 0:00:07]} 33. f4 {[%emt 0:00:34] Kxd5} 1-0

[Event "Vienna Chess Open 2019"]
[Site "Vienna"]
[Date "2019.08.21"]
[Round "6.11"]
[White "Tryggestad, Andreas Garberg"]
[Black "Gavrilescu, David"]
[Result "1/2-1/2"]
[ECO "D38"]
[WhiteElo "2343"]
[BlackElo "2464"]
[Annotator "ChessBase"]
[PlyCount "65"]
[EventDate "2019.08.17"]
[EventType "swiss"]
[EventCountry "AUT"]
[SourceTitle "playchess.com"]
[Source "ChessBase"]
[SourceQuality "1"]
[TimeControl "40/5400+30:1800+30"]

1. d4 {[%emt 0:00:00]} Nf6 {[%emt 0:00:06]} 2. c4 {[%emt 0:00:00]} e6 {[%emt 0:00:18]} 3. Nf3 {[%emt 0:00:00]} d5 {[%emt 0:00:26]} 4. Nc3 {[%emt 0:00:00]} Bb4 {[%emt 0:00:23]} 5. Qb3 {[%emt 0:00:00]} c5 {[%emt 0:00:46]} 6. dxc5 {[%emt 0:00:01]} Nc6 {[%emt 0:00:56]} 7. Bg5 {[%emt 0:00:13]} Qa5 {[%emt 0:00:24]} 8. Bxf6 {[%emt 0:01:59]} dxc4 {[%emt 0:00:16]} 9. Qxc4 {[%emt 0:00:12]} gxf6 {[%emt 0:00:07]} 10. Rc1 {[%emt 0:00:21]} Qxc5 {[%emt 0:00:33]} 11. Qh4 {[%emt 0:01:05]} Ke7 {[%emt 0:01:03]} 12. g3 {[%emt 0:00:14]} Bxc3+ {[%emt 0:01:24]} 13. Rxc3 {[%emt 0:00:07]} Qb4 {[%emt 0:00:41]} 14. Qxb4+ {[%emt 0:00:07]} Nxb4 {[%emt 0:00:08]} 15. a3 {[%emt 0:00:03]} Nd5 {[%emt 0:03:15]} 16. Rc1 {[%emt 0:00:07]} Bd7 {[%emt 0:01:25]} 17. Bg2 {[%emt 0:00:18]} Rac8 {[%emt 0:03:49]} 18. O-O {[%emt 0:07:37]} Nb6 {[%emt 0:04:13]} 19. Nd2 {[%emt 0:02:05]} Na4 {[%emt 0:09:43]} 20. Bxb7 {[%emt 0:06:14]} Rxc1 {[%emt 0:01:50]} 21. Rxc1 {[%emt 0:00:04]} Rb8 {[%emt 0:00:09]} 22. Bf3 {[%emt 0:02:02]} Rxb2 {[%emt 0:07:23]} 23. Ne4 {[%emt 0:00:19]} f5 {[%emt 0:06:26]} 24. Nc5 {[%emt 0:04:31]} Nxc5 {[%emt 0:04:41]} 25. Rxc5 {[%emt 0:00:07]} Rb6 {[%emt 0:00:50]} 26. Rc7 {[%emt 0:10:15]} Ra6 {[%emt 0:02:32]} 27. Bb7 {[%emt 0:02:59]} Rxa3 {[%emt 0:00:24]} 28. Bc8 {[%emt 0:00:12]} Ra1+ {[%emt 0:00:06]} 29. Kg2 {[%emt 0:00:01]} Rd1 {[%emt 0:00:08]} 30. Rxa7 {[%emt 0:00:09]} Ke8 {[%emt 0:00:05]} 31. Bb7 {[%emt 0:07:49]} Kf8 {[%emt 0:03:44]} 32. Bf3 {[%emt 0:00:10]} Rd6 {[%emt 0:02:31]} 33. Ra8+ {[%emt 0:00:34]} 1/2-1/2

[Event "Vienna Chess Open 2019"]
[Site "Vienna"]
[Date "2019.08.21"]
[Round "6.12"]
[White "Soysal, Serkan"]
[Black "Cvitan, Ognjen"]
[Result "1/2-1/2"]
[ECO "B24"]
[WhiteElo "2388"]
[BlackElo "2493"]
[Annotator "ChessBase"]
[PlyCount "26"]
[EventDate "2019.08.17"]
[EventType "swiss"]
[EventCountry "AUT"]
[SourceTitle "playchess.com"]
[Source "ChessBase"]
[SourceQuality "1"]
[TimeControl "40/5400+30:1800+30"]

1. e4 {[%emt 0:00:00]} c5 {[%emt 0:02:34]} 2. Nc3 {[%emt 0:00:39]} Nc6 {[%emt 0:01:36]} 3. Bb5 {[%emt 0:00:28]} Nd4 {[%emt 0:01:15]} 4. Nf3 {[%emt 0:00:09]} a6 {[%emt 0:02:42]} 5. Bd3 {[%emt 0:00:10]} Nc6 {[%emt 0:01:44]} 6. O-O {[%emt 0:01:33]} d6 {[%emt 0:00:26]} 7. h3 {[%emt 0:02:11]} g6 {[%emt 0:04:36]} 8. b3 {[%emt 0:04:17]} Bg7 {[%emt 0:00:55]} 9. Bb2 {[%emt 0:00:02]} e5 {[%emt 0:07:33]} 10. Nd5 {[%emt 0:12:31]} Nge7 {[%emt 0:01:03]} 11. Nxe7 {[%emt 0:00:27]} Qxe7 {[%emt 0:00:12]} 12. c3 {[%emt 0:00:02]} O-O {[%emt 0:03:17]} 13. Bc2 {[%emt 0:00:19]} f5 {[%emt 0:15:54]} 1/2-1/2

[Event "Vienna Chess Open 2019"]
[Site "Vienna"]
[Date "2019.08.21"]
[Round "6.12"]
[White "Sadilek, Maximilian"]
[Black "Ankit, R. Rajpara"]
[Result "0-1"]
[ECO "C50"]
[WhiteElo "2320"]
[BlackElo "2454"]
[Annotator "ChessBase"]
[PlyCount "56"]
[EventDate "2019.08.17"]
[EventType "swiss"]
[EventCountry "AUT"]
[SourceTitle "playchess.com"]
[Source "ChessBase"]
[SourceQuality "1"]
[TimeControl "40/5400+30:1800+30"]

1. e4 {[%emt 0:05:20]} e5 {[%emt 0:00:00]} 2. Nf3 {[%emt 0:00:38]} Nc6 {[%emt 0:00:00]} 3. Bc4 {[%emt 0:00:33]} Bc5 {[%emt 0:00:11]} 4. d4 {[%emt 0:04:24]} Bxd4 {[%emt 0:04:39]} 5. Nxd4 {[%emt 0:01:05]} Nxd4 {[%emt 0:00:22]} 6. O-O {[%emt 0:02:07]} d6 {[%emt 0:01:10]} 7. f4 {[%emt 0:01:12]} Be6 {[%emt 0:01:17]} 8. Na3 {[%emt 0:06:39]} Nf6 {[%emt 0:04:12]} 9. fxe5 {[%emt 0:03:08]} dxe5 {[%emt 0:00:33]} 10. Bg5 {[%emt 0:00:24]} Qe7 {[%emt 0:03:34]} 11. Bxf6 {[%emt 0:14:31]} gxf6 {[%emt 0:01:47]} 12. c3 {[%emt 0:00:15]} Nc6 {[%emt 0:06:21]} 13. Kh1 {[%emt 0:07:36]} Rg8 {[%emt 0:07:36]} 14. Bb5 {[%emt 0:27:51]} Rg6 {[%emt 0:28:01]} 15. Bxc6+ {[%emt 0:04:40]} bxc6 {[%emt 0:00:08]} 16. Qa4 {[%emt 0:00:28]} Qc5 {[%emt 0:02:13]} 17. b4 {[%emt 0:00:54]} Qb6 {[%emt 0:01:22]} 18. c4 {[%emt 0:02:48]} Ke7 {[%emt 0:07:26]} 19. c5 {[%emt 0:00:28]} Qb7 {[%emt 0:00:10]} 20. Rad1 {[%emt 0:09:36]} Rg4 {[%emt 0:03:18]} 21. Rfe1 {[%emt 0:01:55]} h5 {[%emt 0:06:27]} 22. Rd2 {[%emt 0:00:52]} h4 {[%emt 0:01:02]} 23. Re3 {[%emt 0:01:36]} a5 {[%emt 0:03:34]} 24. b5 {[%emt 0:01:17]} cxb5 {[%emt 0:03:50]} 25. Nxb5 {[%emt 0:00:43]} Qc6 {[%emt 0:01:06]} 26. h3 {[%emt 0:01:15]} Rf4 {[%emt 0:04:42]} 27. Rb2 {[%emt 0:00:16]} Qxc5 {[%emt 0:02:22]} 28. Re1 {[%emt 0:00:54]} Bd7 {[%emt 0:01:52]} 0-1